[Event "Late-Titled-Tuesday-Blitz-June-18-2024"]
[Site "Chess.com"]
[Date "2024.06.18"]
[Round "9"]
[White "santosalberto1987"]
[Black "NigelDwarf"]
[Result "1-0"]
[WhiteElo "2570"]
[BlackElo "2435"]
[TimeControl "180+1"]
[EndTime "15:45:50 PDT"]
[Termination "santosalberto1987 won by resignation"]

1. e4 {[%clk 0:03:00.9]} 1... c5 {[%clk 0:02:59.1]} 2. Nf3 {[%clk 0:02:59.4]}
2... d6 {[%clk 0:02:55.5]} 3. Bb5+ {[%clk 0:02:58.8]} 3... Nd7 {[%clk
0:02:54.4]} 4. d4 {[%clk 0:02:58.1]} 4... cxd4 {[%clk 0:02:48.4]} 5. Qxd4 {[%clk
0:02:59]} 5... Nf6 {[%clk 0:02:48]} 6. Nc3 {[%clk 0:02:58.5]} 6... g6 {[%clk
0:02:46.9]} 7. Bg5 {[%clk 0:02:53.9]} 7... Bg7 {[%clk 0:02:46.4]} 8. O-O-O
{[%clk 0:02:52.9]} 8... O-O {[%clk 0:02:45.2]} 9. Qd2 {[%clk 0:02:48.8]} 9...
Qa5 {[%clk 0:02:34.9]} 10. Kb1 {[%clk 0:02:45.2]} 10... Nxe4 {[%clk 0:02:27.6]}
11. Nxe4 {[%clk 0:02:43.9]} 11... Qxb5 {[%clk 0:02:28]} 12. Nc3 {[%clk
0:02:40.8]} 12... Qa5 {[%clk 0:02:12.4]} 13. Bxe7 {[%clk 0:02:40.1]} 13... Re8
{[%clk 0:02:07.2]} 14. Bxd6 {[%clk 0:02:38.2]} 14... Nb6 {[%clk 0:02:06.8]} 15.
Nd4 {[%clk 0:02:29.2]} 15... Nc4 {[%clk 0:02:02.6]} 16. Qf4 {[%clk 0:02:28.2]}
16... Re6 {[%clk 0:00:38.5]} 17. Nb3 {[%clk 0:02:24.4]} 17... Qa6 {[%clk
0:00:16.6]} 18. Nc5 {[%clk 0:02:03.5]} 18... Qc6 {[%clk 0:00:15.8]} 19. Qxc4
{[%clk 0:01:32.9]} 19... Rxd6 {[%clk 0:00:15.4]} 20. Rxd6 {[%clk 0:01:33.4]}
20... Qxd6 {[%clk 0:00:16.3]} 21. Rd1 {[%clk 0:01:33.4]} 21... Qf6 {[%clk
0:00:15.5]} 22. N5e4 {[%clk 0:01:29.4]} 22... Qe7 {[%clk 0:00:15.3]} 23. Nd5
{[%clk 0:01:28.5]} 23... Qe5 {[%clk 0:00:12.2]} 24. c3 {[%clk 0:00:14.6]} 24...
Bf5 {[%clk 0:00:11.9]} 25. f3 {[%clk 0:00:14.8]} 25... h6 {[%clk 0:00:11]} 26.
Ne3 {[%clk 0:00:13.2]} 26... Be6 {[%clk 0:00:10.5]} 27. Qd4 {[%clk 0:00:10.8]}
27... Qa5 {[%clk 0:00:10.7]} 28. Qb4 {[%clk 0:00:07.9]} 28... Qxa2+ {[%clk
0:00:10.7]} 29. Kc2 {[%clk 0:00:08.4]} 29... Rc8 {[%clk 0:00:10.4]} 30. Nc5
{[%clk 0:00:07.3]} 30... Rxc5 {[%clk 0:00:09.6]} 31. Qxc5 {[%clk 0:00:07.3]}
31... Bb3+ {[%clk 0:00:10.2]} 32. Kc1 {[%clk 0:00:07.4]} 32... Qa1+ {[%clk
0:00:10.3]} 33. Kd2 {[%clk 0:00:07.5]} 33... Qxb2+ {[%clk 0:00:11]} 34. Ke1
{[%clk 0:00:07.8]} 34... Bxc3+ {[%clk 0:00:11]} 35. Kf1 {[%clk 0:00:07]} 35...
Bxd1 {[%clk 0:00:11.5]} 36. Nxd1 {[%clk 0:00:07.9]} 36... Bd4 {[%clk 0:00:12]}
37. Qc8+ {[%clk 0:00:07]} 37... Kg7 {[%clk 0:00:12.3]} 38. Nxb2 {[%clk
0:00:07.9]} 38... Bxb2 {[%clk 0:00:13.2]} 39. Qxb7 {[%clk 0:00:08]} 1-0

[Event "Late-Titled-Tuesday-Blitz-June-18-2024"]
[Site "Chess.com"]
[Date "2024.06.18"]
[Round "9"]
[White "jcibarra"]
[Black "Bryanl106"]
[Result "1-0"]
[WhiteElo "3000"]
[BlackElo "2746"]
[TimeControl "180+1"]
[EndTime "15:45:53 PDT"]
[Termination "jcibarra won by resignation"]

1. e4 {[%clk 0:03:00.9]} 1... e5 {[%clk 0:03:00]} 2. Nf3 {[%clk 0:02:59.3]} 2...
Nc6 {[%clk 0:03:00.6]} 3. Bb5 {[%clk 0:02:57.6]} 3... a6 {[%clk 0:03:00.5]} 4.
Bxc6 {[%clk 0:02:57.5]} 4... dxc6 {[%clk 0:03:01.4]} 5. O-O {[%clk 0:02:57.3]}
5... Qf6 {[%clk 0:03:02.1]} 6. d4 {[%clk 0:02:57]} 6... exd4 {[%clk 0:03:03]} 7.
Bg5 {[%clk 0:02:57]} 7... Qd6 {[%clk 0:03:03.6]} 8. Nxd4 {[%clk 0:02:56.3]} 8...
Be7 {[%clk 0:03:00.2]} 9. Be3 {[%clk 0:02:54.7]} 9... c5 {[%clk 0:02:55.7]} 10.
Nb3 {[%clk 0:02:53]} 10... Qxd1 {[%clk 0:02:55.3]} 11. Rxd1 {[%clk 0:02:53.7]}
11... b6 {[%clk 0:02:55.6]} 12. Bf4 {[%clk 0:02:47.9]} 12... Ra7 {[%clk
0:02:52.1]} 13. Nc3 {[%clk 0:02:48]} 13... c6 {[%clk 0:02:43.6]} 14. Na4 {[%clk
0:02:43.3]} 14... Rb7 {[%clk 0:02:40.8]} 15. Bd6 {[%clk 0:02:29.8]} 15... Nf6
{[%clk 0:02:35.8]} 16. f3 {[%clk 0:02:27.7]} 16... Be6 {[%clk 0:02:34.6]} 17.
Rd2 {[%clk 0:02:22]} 17... c4 {[%clk 0:02:18]} 18. Bxe7 {[%clk 0:02:17.5]} 18...
Kxe7 {[%clk 0:02:15.8]} 19. Nd4 {[%clk 0:02:17.5]} 19... Bd7 {[%clk 0:02:15.5]}
20. Nc3 {[%clk 0:02:12.8]} 20... c5 {[%clk 0:02:10.8]} 21. e5 {[%clk 0:02:03.2]}
21... cxd4 {[%clk 0:01:52.5]} 22. exf6+ {[%clk 0:02:03.2]} 22... Kxf6 {[%clk
0:01:53.4]} 23. Rxd4 {[%clk 0:02:02.5]} 23... Be6 {[%clk 0:01:53.8]} 24. Rad1
{[%clk 0:01:56.5]} 24... Ke7 {[%clk 0:01:44.5]} 25. Ne4 {[%clk 0:01:43.5]} 25...
h6 {[%clk 0:01:35]} 26. Kf2 {[%clk 0:01:42.7]} 26... Rc7 {[%clk 0:01:29]} 27.
Rd6 {[%clk 0:01:41.1]} 27... Rb8 {[%clk 0:01:27.1]} 28. g4 {[%clk 0:01:38.7]}
28... a5 {[%clk 0:01:24.3]} 29. Ke3 {[%clk 0:01:24.9]} 29... Rcc8 {[%clk
0:01:01.9]} 30. h3 {[%clk 0:01:22.8]} 30... Rc7 {[%clk 0:00:56]} 31. R1d4 {[%clk
0:01:20.2]} 31... Rcc8 {[%clk 0:00:54.1]} 32. f4 {[%clk 0:00:59.9]} 32... f5
{[%clk 0:00:49.7]} 33. Ng3 {[%clk 0:00:59.8]} 33... fxg4 {[%clk 0:00:48.4]} 34.
f5 {[%clk 0:01:00.2]} 34... Bf7 {[%clk 0:00:48.6]} 35. Rd7+ {[%clk 0:00:50.7]}
35... Kf8 {[%clk 0:00:46.8]} 36. hxg4 {[%clk 0:00:50.5]} 36... Re8+ {[%clk
0:00:43.1]} 37. Ne4 {[%clk 0:00:47.2]} 37... Re7 {[%clk 0:00:15.8]} 38. Kf4
{[%clk 0:00:46.3]} 38... Be8 {[%clk 0:00:10.9]} 39. Rxe7 {[%clk 0:00:42.7]}
39... Kxe7 {[%clk 0:00:11.8]} 40. Rxc4 {[%clk 0:00:41.4]} 40... Kd8 {[%clk
0:00:10]} 41. Ke5 {[%clk 0:00:39.1]} 41... b5 {[%clk 0:00:09.7]} 42. Rc5 {[%clk
0:00:33.7]} 42... Ke7 {[%clk 0:00:09.6]} 43. Rc7+ {[%clk 0:00:32.5]} 43... Bd7
{[%clk 0:00:10]} 44. Nc5 {[%clk 0:00:31.4]} 44... Rd8 {[%clk 0:00:10.7]} 45. c3
{[%clk 0:00:19.6]} 45... b4 {[%clk 0:00:09.1]} 46. cxb4 {[%clk 0:00:18.5]} 46...
axb4 {[%clk 0:00:10]} 47. a4 {[%clk 0:00:17.1]} 47... bxa3 {[%clk 0:00:10.1]}
48. bxa3 {[%clk 0:00:17.2]} 1-0

[Event "Late-Titled-Tuesday-Blitz-June-18-2024"]
[Site "Chess.com"]
[Date "2024.06.18"]
[Round "9"]
[White "RebecaJimnz"]
[Black "NovakRatko"]
[Result "1/2-1/2"]
[WhiteElo "2292"]
[BlackElo "2406"]
[TimeControl "180+1"]
[EndTime "15:45:58 PDT"]
[Termination "Game drawn by repetition"]

1. e4 {[%clk 0:03:00.9]} 1... d5 {[%clk 0:02:58.7]} 2. exd5 {[%clk 0:03:01]}
2... c6 {[%clk 0:02:58.8]} 3. dxc6 {[%clk 0:02:58.6]} 3... Nxc6 {[%clk
0:02:59.7]} 4. Nf3 {[%clk 0:02:58.6]} 4... e5 {[%clk 0:02:59.8]} 5. d3 {[%clk
0:02:58.3]} 5... Bc5 {[%clk 0:02:59.7]} 6. Be2 {[%clk 0:02:58.4]} 6... f5 {[%clk
0:03:00.1]} 7. O-O {[%clk 0:02:58.9]} 7... Nf6 {[%clk 0:03:00.7]} 8. Nc3 {[%clk
0:02:58.8]} 8... O-O {[%clk 0:03:01]} 9. Be3 {[%clk 0:02:49.6]} 9... Bxe3 {[%clk
0:02:58.9]} 10. fxe3 {[%clk 0:02:50.5]} 10... Qb6 {[%clk 0:02:59.4]} 11. Qd2
{[%clk 0:02:38.9]} 11... Qxb2 {[%clk 0:02:57.8]} 12. Rab1 {[%clk 0:02:23.4]}
12... Qa3 {[%clk 0:02:57.3]} 13. d4 {[%clk 0:02:09.4]} 13... e4 {[%clk
0:02:44.5]} 14. Bc4+ {[%clk 0:02:07.4]} 14... Kh8 {[%clk 0:02:44.1]} 15. Ng5
{[%clk 0:02:07.6]} 15... Qe7 {[%clk 0:02:41.8]} 16. Qf2 {[%clk 0:01:52.9]} 16...
h6 {[%clk 0:02:40]} 17. Nh3 {[%clk 0:01:49]} 17... Ng4 {[%clk 0:02:38.8]} 18.
Qg3 {[%clk 0:01:31.5]} 18... g5 {[%clk 0:02:34.9]} 19. Nd5 {[%clk 0:01:29.5]}
19... Qg7 {[%clk 0:02:30.9]} 20. Nf2 {[%clk 0:00:52.1]} 20... Nf6 {[%clk
0:02:16.9]} 21. Nxf6 {[%clk 0:00:37.8]} 21... Rxf6 {[%clk 0:02:16.3]} 22. d5
{[%clk 0:00:31.3]} 22... Na5 {[%clk 0:02:07.8]} 23. Bb5 {[%clk 0:00:25.6]} 23...
a6 {[%clk 0:02:03.9]} 24. Be2 {[%clk 0:00:23.4]} 24... b5 {[%clk 0:01:58.7]} 25.
Qe5 {[%clk 0:00:21.4]} 25... Bd7 {[%clk 0:01:53.9]} 26. Nxe4 {[%clk 0:00:21]}
26... Rff8 {[%clk 0:01:47.9]} 27. Qxg7+ {[%clk 0:00:20.5]} 27... Kxg7 {[%clk
0:01:48.8]} 28. Nd6 {[%clk 0:00:20.8]} 28... Rad8 {[%clk 0:01:42.2]} 29. Bd3
{[%clk 0:00:20.8]} 29... f4 {[%clk 0:01:35.5]} 30. exf4 {[%clk 0:00:20.1]} 30...
gxf4 {[%clk 0:01:35.8]} 31. Ne4 {[%clk 0:00:18.7]} 31... Bg4 {[%clk 0:01:26.7]}
32. h3 {[%clk 0:00:15.2]} 32... Bh5 {[%clk 0:01:26.1]} 33. Nc5 {[%clk
0:00:14.1]} 33... Bf7 {[%clk 0:01:18.2]} 34. Ne6+ {[%clk 0:00:13.6]} 34... Bxe6
{[%clk 0:01:18.1]} 35. dxe6 {[%clk 0:00:14.5]} 35... Rde8 {[%clk 0:01:15.6]} 36.
Rbe1 {[%clk 0:00:14]} 36... Rf6 {[%clk 0:01:06.9]} 37. e7 {[%clk 0:00:13]} 37...
Rf7 {[%clk 0:01:06.6]} 38. Re6 {[%clk 0:00:12.1]} 38... Rexe7 {[%clk 0:01:05.2]}
39. Rxa6 {[%clk 0:00:11.9]} 39... Nc4 {[%clk 0:01:05.4]} 40. Bxc4 {[%clk
0:00:11.9]} 40... bxc4 {[%clk 0:01:04.7]} 41. Rc6 {[%clk 0:00:12.4]} 41... Re4
{[%clk 0:01:04.8]} 42. Kf2 {[%clk 0:00:09.5]} 42... Ra7 {[%clk 0:01:02.1]} 43.
Re1 {[%clk 0:00:07.2]} 43... Rxe1 {[%clk 0:00:59.6]} 44. Kxe1 {[%clk 0:00:08.1]}
44... Ra4 {[%clk 0:00:55.6]} 45. Kd2 {[%clk 0:00:07.4]} 45... h5 {[%clk
0:00:53.8]} 46. Kc3 {[%clk 0:00:07.6]} 46... Rxa2 {[%clk 0:00:47.3]} 47. Rxc4
{[%clk 0:00:06.4]} 47... f3 {[%clk 0:00:47.7]} 48. gxf3 {[%clk 0:00:05.7]} 48...
Ra3+ {[%clk 0:00:48]} 49. Kd2 {[%clk 0:00:04.1]} 49... Rxf3 {[%clk 0:00:48.9]}
50. Rh4 {[%clk 0:00:04.3]} 50... Kg6 {[%clk 0:00:49.5]} 51. c4 {[%clk
0:00:04.2]} 51... Kg5 {[%clk 0:00:50.1]} 52. Rd4 {[%clk 0:00:03.2]} 52... Rxh3
{[%clk 0:00:50.7]} 53. Rd3 {[%clk 0:00:02.3]} 53... Rh4 {[%clk 0:00:49.1]} 54.
Kc3 {[%clk 0:00:02.1]} 54... Rh1 {[%clk 0:00:49.1]} 55. Rd5+ {[%clk 0:00:02.1]}
55... Kg4 {[%clk 0:00:49.2]} 56. Rd4+ {[%clk 0:00:02.4]} 56... Kg5 {[%clk
0:00:49.3]} 57. Rd5+ {[%clk 0:00:02.8]} 57... Kg4 {[%clk 0:00:49.7]} 58. Rd4+
{[%clk 0:00:03.3]} 58... Kg5 {[%clk 0:00:50.1]} 59. Rd5+ {[%clk 0:00:03.8]}
1/2-1/2

[Event "Late-Titled-Tuesday-Blitz-June-18-2024"]
[Site "Chess.com"]
[Date "2024.06.18"]
[Round "9"]
[White "Finejupiter"]
[Black "CombativeWombat"]
[Result "0-1"]
[WhiteElo "2097"]
[BlackElo "2291"]
[TimeControl "180+1"]
[EndTime "15:46:00 PDT"]
[Termination "CombativeWombat won on time"]

1. e4 {[%clk 0:02:58.8]} 1... e5 {[%clk 0:02:58.3]} 2. Nf3 {[%clk 0:02:58.2]}
2... Nc6 {[%clk 0:02:58.8]} 3. d4 {[%clk 0:02:58.3]} 3... exd4 {[%clk
0:02:59.7]} 4. Nxd4 {[%clk 0:02:58]} 4... Bc5 {[%clk 0:02:59.8]} 5. Nb3 {[%clk
0:02:57.9]} 5... Bb6 {[%clk 0:02:59.9]} 6. Nc3 {[%clk 0:02:58.2]} 6... Nf6
{[%clk 0:02:57]} 7. Qe2 {[%clk 0:02:58]} 7... O-O {[%clk 0:02:50.1]} 8. Be3
{[%clk 0:02:58.3]} 8... Re8 {[%clk 0:02:45.9]} 9. f3 {[%clk 0:02:56.2]} 9... d6
{[%clk 0:02:18.8]} 10. O-O-O {[%clk 0:02:54.5]} 10... Be6 {[%clk 0:02:18.4]} 11.
Kb1 {[%clk 0:02:52.3]} 11... Nd7 {[%clk 0:02:10.2]} 12. g4 {[%clk 0:02:44.8]}
12... a5 {[%clk 0:02:09.4]} 13. Nd4 {[%clk 0:02:26.2]} 13... a4 {[%clk
0:01:59.3]} 14. a3 {[%clk 0:02:17.7]} 14... Ba5 {[%clk 0:01:47.3]} 15. Ncb5
{[%clk 0:02:10.7]} 15... Nce5 {[%clk 0:01:22.7]} 16. Nxe6 {[%clk 0:02:06.6]}
16... fxe6 {[%clk 0:01:19.8]} 17. f4 {[%clk 0:02:06.7]} 17... Nf7 {[%clk
0:01:11]} 18. h4 {[%clk 0:01:54.6]} 18... d5 {[%clk 0:00:55.2]} 19. e5 {[%clk
0:01:41.9]} 19... c6 {[%clk 0:00:54.8]} 20. Nd4 {[%clk 0:01:39.7]} 20... c5
{[%clk 0:00:55.1]} 21. Nb5 {[%clk 0:01:34.7]} 21... Nb6 {[%clk 0:00:45.4]} 22.
Bxc5 {[%clk 0:01:30.9]} 22... Rc8 {[%clk 0:00:43.8]} 23. Bd4 {[%clk 0:01:26.3]}
23... Nc4 {[%clk 0:00:40.4]} 24. Qf2 {[%clk 0:01:18.8]} 24... Qd7 {[%clk
0:00:40.9]} 25. Bxc4 {[%clk 0:01:18.6]} 25... Rxc4 {[%clk 0:00:40.2]} 26. Nc3
{[%clk 0:01:19]} 26... Rec8 {[%clk 0:00:39.9]} 27. Rh3 {[%clk 0:01:16.5]} 27...
b5 {[%clk 0:00:39.2]} 28. f5 {[%clk 0:01:16.4]} 28... b4 {[%clk 0:00:38.5]} 29.
axb4 {[%clk 0:01:14]} 29... Bxb4 {[%clk 0:00:38.1]} 30. fxe6 {[%clk 0:01:09.8]}
30... Qxe6 {[%clk 0:00:39]} 31. Rf3 {[%clk 0:01:02.3]} 31... a3 {[%clk
0:00:37.4]} 32. b3 {[%clk 0:00:52.4]} 32... Rxc3 {[%clk 0:00:36.4]} 33. Bxc3
{[%clk 0:00:42.7]} 33... Bxc3 {[%clk 0:00:36.8]} 34. Qa7 {[%clk 0:00:28.6]}
34... Bb2 {[%clk 0:00:20.2]} 35. Rdf1 {[%clk 0:00:21.7]} 35... Nxe5 {[%clk
0:00:20.2]} 36. Rf5 {[%clk 0:00:15.3]} 36... h6 {[%clk 0:00:17.9]} 37. g5 {[%clk
0:00:13.3]} 37... Nd3 {[%clk 0:00:14.5]} 38. cxd3 {[%clk 0:00:11.5]} 38... Qxf5
{[%clk 0:00:14]} 0-1

[Event "Late-Titled-Tuesday-Blitz-June-18-2024"]
[Site "Chess.com"]
[Date "2024.06.18"]
[Round "9"]
[White "Chaubunagungamaug1"]
[Black "th3d4rkness"]
[Result "0-1"]
[WhiteElo "2467"]
[BlackElo "2251"]
[TimeControl "180+1"]
[EndTime "15:46:02 PDT"]
[Termination "th3d4rkness won by resignation"]

1. e4 {[%clk 0:03:00.9]} 1... c5 {[%clk 0:02:59.6]} 2. Nf3 {[%clk 0:03:01.1]}
2... Nc6 {[%clk 0:03:00]} 3. Bb5 {[%clk 0:02:55.2]} 3... g6 {[%clk 0:02:59]} 4.
O-O {[%clk 0:02:53.5]} 4... Bg7 {[%clk 0:02:59]} 5. Bxc6 {[%clk 0:02:53.1]} 5...
bxc6 {[%clk 0:02:58.8]} 6. d3 {[%clk 0:02:51.3]} 6... e5 {[%clk 0:02:56.6]} 7.
Nc3 {[%clk 0:02:49.6]} 7... d6 {[%clk 0:02:56.3]} 8. Be3 {[%clk 0:02:44]} 8...
Nh6 {[%clk 0:02:55.7]} 9. h3 {[%clk 0:02:43.2]} 9... f6 {[%clk 0:02:55.8]} 10.
Nd2 {[%clk 0:02:42.2]} 10... Nf7 {[%clk 0:02:56]} 11. Qe2 {[%clk 0:02:32.4]}
11... O-O {[%clk 0:02:55.9]} 12. f4 {[%clk 0:02:30.4]} 12... Qe7 {[%clk
0:02:47.3]} 13. Qf2 {[%clk 0:02:26.1]} 13... Be6 {[%clk 0:02:39.4]} 14. f5
{[%clk 0:02:17.9]} 14... gxf5 {[%clk 0:02:33.9]} 15. exf5 {[%clk 0:02:18.8]}
15... Bd5 {[%clk 0:02:31.1]} 16. Nde4 {[%clk 0:02:15.9]} 16... c4 {[%clk
0:02:22.2]} 17. g4 {[%clk 0:02:04.6]} 17... cxd3 {[%clk 0:02:14]} 18. cxd3
{[%clk 0:02:05.5]} 18... Bh6 {[%clk 0:01:51.4]} 19. Bxh6 {[%clk 0:01:44.7]}
19... Nxh6 {[%clk 0:01:51.1]} 20. Qe3 {[%clk 0:01:33.3]} 20... Nf7 {[%clk
0:01:50.5]} 21. Kh2 {[%clk 0:01:30.5]} 21... Kh8 {[%clk 0:01:49.1]} 22. Rg1
{[%clk 0:01:29.5]} 22... Rg8 {[%clk 0:01:48.9]} 23. Raf1 {[%clk 0:01:27.7]}
23... Rab8 {[%clk 0:01:46.1]} 24. b3 {[%clk 0:01:26.6]} 24... Bxe4 {[%clk
0:01:36.4]} 25. dxe4 {[%clk 0:01:16.8]} 25... Rb4 {[%clk 0:01:34.1]} 26. h4
{[%clk 0:01:15.6]} 26... Rd4 {[%clk 0:01:30.8]} 27. Ne2 {[%clk 0:01:14.3]} 27...
Rb4 {[%clk 0:01:25.4]} 28. Nc3 {[%clk 0:00:49]} 28... Rd4 {[%clk 0:01:16.9]} 29.
Kh3 {[%clk 0:00:41.5]} 29... d5 {[%clk 0:01:16.2]} 30. exd5 {[%clk 0:00:33.8]}
30... cxd5 {[%clk 0:01:12.6]} 31. Ne2 {[%clk 0:00:31.4]} 31... Re4 {[%clk
0:01:08.9]} 32. Qf3 {[%clk 0:00:31.4]} 32... Qc5 {[%clk 0:01:05.6]} 33. Rg3
{[%clk 0:00:26.3]} 33... Qc2 {[%clk 0:01:00]} 34. Rf2 {[%clk 0:00:24.5]} 34...
Qc5 {[%clk 0:00:35.5]} 35. Rfg2 {[%clk 0:00:18.2]} 35... Nd6 {[%clk 0:00:31]}
36. g5 {[%clk 0:00:17.5]} 36... d4 {[%clk 0:00:31.3]} 37. gxf6 {[%clk
0:00:16.1]} 37... Rxg3+ {[%clk 0:00:30]} 38. Qxg3 {[%clk 0:00:15.4]} 38... Re3
{[%clk 0:00:30.6]} 39. f7 {[%clk 0:00:03.3]} 39... Nxf7 {[%clk 0:00:27.6]} 40.
f6 {[%clk 0:00:02.5]} 40... Rxg3+ {[%clk 0:00:26.4]} 41. Nxg3 {[%clk 0:00:03.4]}
41... d3 {[%clk 0:00:25.1]} 42. Nh5 {[%clk 0:00:01.7]} 42... Qc8+ {[%clk
0:00:22.3]} 43. Kh2 {[%clk 0:00:01.8]} 43... Qf5 {[%clk 0:00:21.6]} 44. Ng3
{[%clk 0:00:01]} 44... Qf4 {[%clk 0:00:21.8]} 45. Kh3 {[%clk 0:00:01]} 45... d2
{[%clk 0:00:21.5]} 46. Rg1 {[%clk 0:00:01.4]} 46... e4 {[%clk 0:00:20.4]} 47.
Rf1 {[%clk 0:00:01.7]} 47... Qxf1+ {[%clk 0:00:20]} 48. Nxf1 {[%clk 0:00:02.6]}
0-1

[Event "Late-Titled-Tuesday-Blitz-June-18-2024"]
[Site "Chess.com"]
[Date "2024.06.18"]
[Round "9"]
[White "jup1978"]
[Black "egnfanclub"]
[Result "0-1"]
[WhiteElo "2429"]
[BlackElo "2342"]
[TimeControl "180+1"]
[EndTime "15:46:05 PDT"]
[Termination "egnfanclub won by checkmate"]

1. e4 {[%clk 0:02:57.5]} 1... e5 {[%clk 0:02:57.3]} 2. Nf3 {[%clk 0:02:57]} 2...
Nc6 {[%clk 0:02:57.6]} 3. Bc4 {[%clk 0:02:55.3]} 3... Nf6 {[%clk 0:02:57.4]} 4.
d3 {[%clk 0:02:55.7]} 4... Bc5 {[%clk 0:02:57.2]} 5. Be3 {[%clk 0:02:56.1]} 5...
Bxe3 {[%clk 0:02:49.5]} 6. fxe3 {[%clk 0:02:57]} 6... d5 {[%clk 0:02:50]} 7.
exd5 {[%clk 0:02:56.3]} 7... Nxd5 {[%clk 0:02:50.9]} 8. Qe2 {[%clk 0:02:56.5]}
8... O-O {[%clk 0:02:43.6]} 9. a3 {[%clk 0:02:56.1]} 9... Nf6 {[%clk 0:02:26.4]}
10. Nbd2 {[%clk 0:02:53.8]} 10... h6 {[%clk 0:02:21.9]} 11. O-O {[%clk
0:02:52.9]} 11... Qe7 {[%clk 0:02:19.2]} 12. h3 {[%clk 0:02:49.4]} 12... Be6
{[%clk 0:02:18.1]} 13. Rf2 {[%clk 0:02:47.9]} 13... Bxc4 {[%clk 0:02:00.7]} 14.
Nxc4 {[%clk 0:02:48.8]} 14... e4 {[%clk 0:02:01.1]} 15. Nd4 {[%clk 0:02:41.5]}
15... Nxd4 {[%clk 0:01:56.3]} 16. exd4 {[%clk 0:02:42.4]} 16... Rfe8 {[%clk
0:01:47.2]} 17. dxe4 {[%clk 0:02:37.4]} 17... Qxe4 {[%clk 0:01:45.5]} 18. Qxe4
{[%clk 0:02:35.8]} 18... Rxe4 {[%clk 0:01:46.4]} 19. c3 {[%clk 0:02:32.7]} 19...
Nd5 {[%clk 0:01:36.7]} 20. Raf1 {[%clk 0:02:28.7]} 20... f6 {[%clk 0:01:36.6]}
21. Rf5 {[%clk 0:02:27]} 21... c6 {[%clk 0:01:36.6]} 22. Nd2 {[%clk 0:02:26.6]}
22... Re6 {[%clk 0:01:31.5]} 23. R5f3 {[%clk 0:02:21.9]} 23... Rae8 {[%clk
0:01:30.7]} 24. Nb3 {[%clk 0:02:19.1]} 24... b6 {[%clk 0:01:29.6]} 25. Nc1
{[%clk 0:02:18.2]} 25... Ne3 {[%clk 0:01:25.8]} 26. Re1 {[%clk 0:02:13.8]} 26...
Nc4 {[%clk 0:01:25.9]} 27. Rxe6 {[%clk 0:01:56.9]} 27... Rxe6 {[%clk 0:01:26.8]}
28. Nd3 {[%clk 0:01:56.7]} 28... Re2 {[%clk 0:01:19.1]} 29. Rf2 {[%clk
0:01:56.1]} 29... Re3 {[%clk 0:01:19.3]} 30. Nb4 {[%clk 0:01:54.3]} 30... Re6
{[%clk 0:01:09.8]} 31. Kf1 {[%clk 0:01:52.4]} 31... Ne3+ {[%clk 0:01:04]} 32.
Kg1 {[%clk 0:01:50.8]} 32... Nc4 {[%clk 0:01:04.3]} 33. Nd3 {[%clk 0:01:48.9]}
33... Re3 {[%clk 0:01:00.1]} 34. Nf4 {[%clk 0:01:42]} 34... Re1+ {[%clk
0:00:46.4]} 35. Kh2 {[%clk 0:01:41.3]} 35... Kf7 {[%clk 0:00:45.6]} 36. Nd3
{[%clk 0:01:40.6]} 36... Rd1 {[%clk 0:00:40.5]} 37. Nb4 {[%clk 0:01:40.3]} 37...
c5 {[%clk 0:00:40.2]} 38. dxc5 {[%clk 0:01:40]} 38... bxc5 {[%clk 0:00:41.1]}
39. Na6 {[%clk 0:01:32.7]} 39... Rd5 {[%clk 0:00:38.8]} 40. a4 {[%clk
0:01:28.8]} 40... f5 {[%clk 0:00:33.3]} 41. b3 {[%clk 0:01:27.2]} 41... Ne3
{[%clk 0:00:32.8]} 42. c4 {[%clk 0:01:19.4]} 42... Re5 {[%clk 0:00:31.3]} 43.
Nc7 {[%clk 0:01:13.3]} 43... g5 {[%clk 0:00:26.8]} 44. Rd2 {[%clk 0:01:09.5]}
44... Nf1+ {[%clk 0:00:25.8]} 45. Kg1 {[%clk 0:01:07.3]} 45... Nxd2 {[%clk
0:00:26.7]} 46. Kf2 {[%clk 0:01:07.3]} 46... Nxb3 {[%clk 0:00:26.7]} 47. Nb5
{[%clk 0:01:07.4]} 47... a6 {[%clk 0:00:23.8]} 48. Nc7 {[%clk 0:01:06.7]} 48...
Nd2 {[%clk 0:00:23.8]} 49. Nxa6 {[%clk 0:01:05.9]} 49... Nxc4 {[%clk 0:00:23.8]}
50. Nc7 {[%clk 0:01:06.3]} 50... Ke7 {[%clk 0:00:19.8]} 51. Nb5 {[%clk
0:01:05.7]} 51... Kd7 {[%clk 0:00:19.3]} 52. h4 {[%clk 0:01:04.9]} 52... Kc6
{[%clk 0:00:19.1]} 53. hxg5 {[%clk 0:01:04.8]} 53... hxg5 {[%clk 0:00:20]} 54.
Kf3 {[%clk 0:01:04.1]} 54... Nb2 {[%clk 0:00:20]} 55. Nc3 {[%clk 0:01:03.2]}
55... c4 {[%clk 0:00:15.6]} 56. a5 {[%clk 0:01:01.9]} 56... Kc5 {[%clk 0:00:15]}
57. g4 {[%clk 0:01:02.7]} 57... f4 {[%clk 0:00:14.6]} 58. Nd1 {[%clk 0:00:58.2]}
58... Nxd1 {[%clk 0:00:14.2]} 59. Kg2 {[%clk 0:00:56.6]} 59... Re2+ {[%clk
0:00:14.5]} 60. Kh3 {[%clk 0:00:56.9]} 60... Re3+ {[%clk 0:00:15.4]} 61. Kh2
{[%clk 0:00:56.6]} 61... Ra3 {[%clk 0:00:16.3]} 62. a6 {[%clk 0:00:56.7]} 62...
Rxa6 {[%clk 0:00:16.6]} 63. Kh3 {[%clk 0:00:57.4]} 63... Kd4 {[%clk 0:00:17.2]}
64. Kh2 {[%clk 0:00:57.5]} 64... Ke3 {[%clk 0:00:17.8]} 65. Kg2 {[%clk
0:00:56.6]} 65... f3+ {[%clk 0:00:18.4]} 66. Kh3 {[%clk 0:00:54.9]} 66... f2
{[%clk 0:00:18.9]} 67. Kg3 {[%clk 0:00:55.5]} 67... Ke2 {[%clk 0:00:19.4]} 68.
Kh2 {[%clk 0:00:55.2]} 68... f1=Q {[%clk 0:00:19]} 69. Kg3 {[%clk 0:00:55.4]}
69... Ra3+ {[%clk 0:00:18.7]} 70. Kh2 {[%clk 0:00:55.1]} 70... Rh3# {[%clk
0:00:19.2]} 0-1